[Event "*** Titled Tuesday Blitz"]
[Site "Chess.com"]
[Date "2021.02.16"]
[Round "5"]
[White "anon481216"]
[Black "szefru"]
[Result "1-0"]
[WhiteElo "2448"]
[BlackElo "2260"]
[TimeControl "180+1"]
[EndTime "10:57:00 PST"]
[Termination "anon481216 won by checkmate"]

1. d4 {[%clk 0:03:00.9]} 1... d5 {[%clk 0:02:58.9]} 2. c4 {[%clk 0:03:01.3]}
2... c6 {[%clk 0:02:58.8]} 3. Nf3 {[%clk 0:03:01.6]} 3... Nf6 {[%clk 0:02:59.2]}
4. Nc3 {[%clk 0:03:01.8]} 4... e6 {[%clk 0:02:59.6]} 5. Bg5 {[%clk 0:03:02]}
5... Nbd7 {[%clk 0:02:59.9]} 6. cxd5 {[%clk 0:02:59.6]} 6... exd5 {[%clk
0:02:59.2]} 7. e3 {[%clk 0:02:59.6]} 7... Be7 {[%clk 0:02:58.8]} 8. Bd3 {[%clk
0:02:59.2]} 8... O-O {[%clk 0:02:58.6]} 9. Qc2 {[%clk 0:02:59.4]} 9... h6 {[%clk
0:02:57.7]} 10. Bh4 {[%clk 0:02:56.7]} 10... a5 {[%clk 0:02:57.9]} 11. O-O
{[%clk 0:02:56.1]} 11... Re8 {[%clk 0:02:55.5]} 12. a3 {[%clk 0:02:50.4]} 12...
Nf8 {[%clk 0:02:54.6]} 13. Rab1 {[%clk 0:02:50]} 13... Be6 {[%clk 0:02:50]} 14.
b4 {[%clk 0:02:48.7]} 14... axb4 {[%clk 0:02:49.1]} 15. axb4 {[%clk 0:02:48.6]}
15... Ra3 {[%clk 0:02:45.8]} 16. b5 {[%clk 0:02:38.3]} 16... Qa5 {[%clk
0:02:42.9]} 17. Rfc1 {[%clk 0:02:22.1]} 17... c5 {[%clk 0:02:23.1]} 18. dxc5
{[%clk 0:02:20.6]} 18... Bxc5 {[%clk 0:02:21]} 19. Bxf6 {[%clk 0:02:18.4]} 19...
gxf6 {[%clk 0:02:20.5]} 20. Ne2 {[%clk 0:01:59.7]} 20... b6 {[%clk 0:02:12.2]}
21. Nfd4 {[%clk 0:01:52.1]} 21... Rc8 {[%clk 0:01:54.9]} 22. Nc6 {[%clk
0:01:49.1]} 22... Qa4 {[%clk 0:01:45.5]} 23. Qxa4 {[%clk 0:01:44.2]} 23... Rxa4
{[%clk 0:01:46.4]} 24. Ned4 {[%clk 0:01:42.6]} 24... Kg7 {[%clk 0:01:40.8]} 25.
Ra1 {[%clk 0:01:24]} 25... Rca8 {[%clk 0:01:39]} 26. Rxa4 {[%clk 0:01:20.8]}
26... Rxa4 {[%clk 0:01:39.9]} 27. h3 {[%clk 0:01:17.8]} 27... Nd7 {[%clk
0:01:35]} 28. Bf5 {[%clk 0:01:06]} 28... Nf8 {[%clk 0:01:14.1]} 29. g4 {[%clk
0:01:04.6]} 29... Ra2 {[%clk 0:01:10.4]} 30. Kg2 {[%clk 0:00:58.1]} 30... Rb2
{[%clk 0:01:09.9]} 31. Ra1 {[%clk 0:00:50.4]} 31... Ng6 {[%clk 0:01:03.5]} 32.
Nxe6+ {[%clk 0:00:41.2]} 32... fxe6 {[%clk 0:01:02.9]} 33. Ra7+ {[%clk
0:00:41.3]} 33... Kf8 {[%clk 0:00:53.4]} 34. Bxg6 {[%clk 0:00:41]} 34... Bxe3
{[%clk 0:00:52.2]} 35. Rf7+ {[%clk 0:00:39.9]} 35... Kg8 {[%clk 0:00:51]} 36.
Ne7+ {[%clk 0:00:38.8]} 36... Kh8 {[%clk 0:00:47.8]} 37. Rh7# {[%clk 0:00:38.7]}
1-0

[Event "*** Titled Tuesday Blitz"]
[Site "Chess.com"]
[Date "2021.02.16"]
[Round "5"]
[White "bylavochka"]
[Black "AniJak"]
[Result "0-1"]
[WhiteElo "2082"]
[BlackElo "2325"]
[TimeControl "180+1"]
[EndTime "10:57:02 PST"]
[Termination "AniJak won on time"]

1. e4 {[%clk 0:03:00.9]} 1... c5 {[%clk 0:02:59.4]} 2. Nf3 {[%clk 0:03:00.9]}
2... e6 {[%clk 0:02:59.6]} 3. d4 {[%clk 0:03:01.2]} 3... cxd4 {[%clk 0:03:00.1]}
4. Nxd4 {[%clk 0:03:02.1]} 4... a6 {[%clk 0:03:00.6]} 5. Nc3 {[%clk 0:03:01.2]}
5... b5 {[%clk 0:03:00.6]} 6. Be3 {[%clk 0:03:00.2]} 6... Bb7 {[%clk 0:03:00.1]}
7. a3 {[%clk 0:02:59.7]} 7... d6 {[%clk 0:02:57.5]} 8. Bd3 {[%clk 0:02:59.5]}
8... Nd7 {[%clk 0:02:56.2]} 9. O-O {[%clk 0:02:59.2]} 9... Ngf6 {[%clk
0:02:56.1]} 10. Kh1 {[%clk 0:02:54.6]} 10... Nc5 {[%clk 0:02:54]} 11. f3 {[%clk
0:02:50.6]} 11... Be7 {[%clk 0:02:53.4]} 12. Nce2 {[%clk 0:02:47.9]} 12... O-O
{[%clk 0:02:39.8]} 13. Nb3 {[%clk 0:02:30.7]} 13... Nxb3 {[%clk 0:02:35.3]} 14.
cxb3 {[%clk 0:02:31.6]} 14... d5 {[%clk 0:02:35.1]} 15. e5 {[%clk 0:01:55.2]}
15... Nd7 {[%clk 0:02:35]} 16. f4 {[%clk 0:01:50.2]} 16... g6 {[%clk 0:02:35.5]}
17. b4 {[%clk 0:01:40.7]} 17... Nb6 {[%clk 0:02:22.7]} 18. Nd4 {[%clk 0:01:19]}
18... Nc4 {[%clk 0:02:16.1]} 19. Bc1 {[%clk 0:01:18.4]} 19... Qd7 {[%clk
0:02:08.5]} 20. b3 {[%clk 0:01:16.6]} 20... Nb6 {[%clk 0:02:07.7]} 21. Be3
{[%clk 0:01:07.9]} 21... Rac8 {[%clk 0:02:06.3]} 22. Rc1 {[%clk 0:01:04]} 22...
Rxc1 {[%clk 0:02:04.7]} 23. Qxc1 {[%clk 0:01:02.7]} 23... Rc8 {[%clk 0:02:05]}
24. Qd2 {[%clk 0:00:57.6]} 24... Qc7 {[%clk 0:02:03.8]} 25. Qe2 {[%clk 0:00:26]}
25... Nd7 {[%clk 0:02:01.1]} 26. g4 {[%clk 0:00:13.6]} 26... Nf8 {[%clk
0:01:37.8]} 27. Rc1 {[%clk 0:00:13.2]} 27... Qd8 {[%clk 0:01:37.3]} 28. Rxc8
{[%clk 0:00:13.6]} 28... Qxc8 {[%clk 0:01:37.6]} 29. Qd2 {[%clk 0:00:11.5]}
29... f6 {[%clk 0:01:34]} 30. Bf2 {[%clk 0:00:03.7]} 30... fxe5 {[%clk 0:01:23]}
31. fxe5 {[%clk 0:00:04.6]} 31... Qd8 {[%clk 0:01:19.1]} 32. Qe3 {[%clk
0:00:02.4]} 32... Bg5 {[%clk 0:01:18.3]} 33. Qf3 {[%clk 0:00:02]} 33... Qc7
{[%clk 0:01:11.3]} 34. Qd1 {[%clk 0:00:01.3]} 34... Qxe5 {[%clk 0:01:10.2]} 0-1

[Event "*** Titled Tuesday Blitz"]
[Site "Chess.com"]
[Date "2021.02.16"]
[Round "5"]
[White "Alexsur1981"]
[Black "ZiggyStardust64"]
[Result "1-0"]
[WhiteElo "2840"]
[BlackElo "2579"]
[TimeControl "180+1"]
[EndTime "10:57:05 PST"]
[Termination "Alexsur1981 won by resignation"]

1. e4 {[%clk 0:03:00.9]} 1... c6 {[%clk 0:02:59.5]} 2. Nc3 {[%clk 0:03:00.7]}
2... d5 {[%clk 0:02:59.9]} 3. Qe2 {[%clk 0:03:01.3]} 3... g6 {[%clk 0:02:47.1]}
4. exd5 {[%clk 0:03:00.8]} 4... cxd5 {[%clk 0:02:48]} 5. Qb5+ {[%clk 0:03:01.1]}
5... Bd7 {[%clk 0:02:44.4]} 6. Qxd5 {[%clk 0:03:01.3]} 6... Nc6 {[%clk
0:02:33.3]} 7. Bc4 {[%clk 0:03:01.1]} 7... e6 {[%clk 0:02:33.5]} 8. Qf3 {[%clk
0:03:01.2]} 8... Ne5 {[%clk 0:02:31.8]} 9. Qe2 {[%clk 0:03:01.3]} 9... Nxc4
{[%clk 0:02:30.8]} 10. Qxc4 {[%clk 0:03:02.2]} 10... Bc6 {[%clk 0:02:30.5]} 11.
Nf3 {[%clk 0:03:01.9]} 11... Rc8 {[%clk 0:02:26.6]} 12. Qe2 {[%clk 0:03:01.4]}
12... Bg7 {[%clk 0:02:27]} 13. O-O {[%clk 0:02:59.3]} 13... Ne7 {[%clk
0:02:25.5]} 14. Ne4 {[%clk 0:02:58.5]} 14... O-O {[%clk 0:02:19.9]} 15. c3
{[%clk 0:02:58.5]} 15... Qd5 {[%clk 0:02:15.8]} 16. Re1 {[%clk 0:02:56.5]} 16...
Bb5 {[%clk 0:02:06.5]} 17. Qe3 {[%clk 0:02:47.8]} 17... Nf5 {[%clk 0:02:06.3]}
18. Qxa7 {[%clk 0:02:30.8]} 18... Bd3 {[%clk 0:01:49.9]} 19. Ng3 {[%clk
0:02:30.7]} 19... Ra8 {[%clk 0:01:26.8]} 20. Qb6 {[%clk 0:02:29.9]} 20... Nd6
{[%clk 0:01:07.4]} 21. b3 {[%clk 0:02:22.9]} 21... e5 {[%clk 0:00:48.4]} 22. Bb2
{[%clk 0:02:20.9]} 22... e4 {[%clk 0:00:46.3]} 23. c4 {[%clk 0:02:20.6]} 23...
Qe6 {[%clk 0:00:41.9]} 24. Bxg7 {[%clk 0:02:19.9]} 24... Kxg7 {[%clk 0:00:41.1]}
25. Qd4+ {[%clk 0:02:17.7]} 25... Qf6 {[%clk 0:00:39.8]} 26. Qxf6+ {[%clk
0:02:15.8]} 26... Kxf6 {[%clk 0:00:40.7]} 27. Nd4 {[%clk 0:02:13.8]} 27... Ke5
{[%clk 0:00:40.6]} 28. Nde2 {[%clk 0:02:11.8]} 28... g5 {[%clk 0:00:40.4]} 29.
Nc3 {[%clk 0:02:11.3]} 29... f5 {[%clk 0:00:39.4]} 30. f3 {[%clk 0:02:10.1]}
30... Kd4 {[%clk 0:00:32.7]} 31. fxe4 {[%clk 0:02:06.6]} 31... fxe4 {[%clk
0:00:33.6]} 32. Re3 {[%clk 0:02:03.8]} 32... Rf7 {[%clk 0:00:29.3]} 33. Rae1
{[%clk 0:02:03.6]} 33... Raf8 {[%clk 0:00:26.8]} 34. h3 {[%clk 0:02:00.1]} 34...
Re8 {[%clk 0:00:23.2]} 35. Nge2+ {[%clk 0:01:52.2]} 35... Kc5 {[%clk 0:00:20.7]}
36. Na4+ {[%clk 0:01:51.1]} 36... Kb4 {[%clk 0:00:19.9]} 37. Nec3 {[%clk
0:01:52]} 37... Nf5 {[%clk 0:00:17.8]} 38. Rxd3 {[%clk 0:01:51.2]} 38... exd3
{[%clk 0:00:17.9]} 39. Rxe8 {[%clk 0:01:51.4]} 39... Ng3 {[%clk 0:00:18.8]} 40.
Re1 {[%clk 0:01:49.7]} 40... h5 {[%clk 0:00:17.5]} 41. Nd5+ {[%clk 0:01:47.4]}
41... Ka3 {[%clk 0:00:14.8]} 42. Nc5 {[%clk 0:01:48.3]} 42... Ne2+ {[%clk
0:00:14.2]} 43. Kh2 {[%clk 0:01:47]} 43... h4 {[%clk 0:00:10.4]} 44. Nxd3 {[%clk
0:01:46.6]} 44... Ng3 {[%clk 0:00:11.3]} 45. Nc3 {[%clk 0:01:41.2]} 45... b6
{[%clk 0:00:09.5]} 46. Re8 {[%clk 0:01:38.8]} 46... Ra7 {[%clk 0:00:02.9]} 47.
Nb5+ {[%clk 0:01:38.4]} 47... Kxa2 {[%clk 0:00:01.3]} 48. Nxa7 {[%clk
0:01:39.3]} 1-0

[Event "*** Titled Tuesday Blitz"]
[Site "Chess.com"]
[Date "2021.02.16"]
[Round "5"]
[White "klimkoj"]
[Black "atalz0"]
[Result "0-1"]
[WhiteElo "2546"]
[BlackElo "2409"]
[TimeControl "180+1"]
[EndTime "10:57:08 PST"]
[Termination "atalz0 won by resignation"]

1. d4 {[%clk 0:03:00.9]} 1... d5 {[%clk 0:02:58.1]} 2. c4 {[%clk 0:03:01.8]}
2... e6 {[%clk 0:02:58.2]} 3. Nf3 {[%clk 0:03:01]} 3... a6 {[%clk 0:02:58.2]} 4.
g3 {[%clk 0:03:00.7]} 4... dxc4 {[%clk 0:02:58]} 5. Bg2 {[%clk 0:03:01.3]} 5...
Nc6 {[%clk 0:02:57.5]} 6. e3 {[%clk 0:03:00.9]} 6... Rb8 {[%clk 0:02:57.3]} 7.
Nfd2 {[%clk 0:02:53.2]} 7... Na5 {[%clk 0:02:45.8]} 8. Qa4+ {[%clk 0:02:46.9]}
8... c6 {[%clk 0:02:44.4]} 9. b4 {[%clk 0:02:46.9]} 9... cxb3 {[%clk 0:02:30.6]}
10. axb3 {[%clk 0:02:46.8]} 10... b6 {[%clk 0:02:13.9]} 11. O-O {[%clk
0:02:32.2]} 11... Bd7 {[%clk 0:01:44]} 12. b4 {[%clk 0:02:28]} 12... c5 {[%clk
0:01:41.9]} 13. Qa2 {[%clk 0:02:19.1]} 13... cxb4 {[%clk 0:01:41]} 14. Re1
{[%clk 0:02:07.4]} 14... Nf6 {[%clk 0:01:36.1]} 15. Bf1 {[%clk 0:02:07.3]} 15...
Qc8 {[%clk 0:01:12.5]} 16. Nb3 {[%clk 0:02:02]} 16... Nxb3 {[%clk 0:01:08.6]}
17. Qxb3 {[%clk 0:02:02.9]} 17... a5 {[%clk 0:01:08.2]} 18. e4 {[%clk
0:02:01.6]} 18... Be7 {[%clk 0:01:05.6]} 19. d5 {[%clk 0:01:57.9]} 19... O-O
{[%clk 0:00:50.5]} 20. Bf4 {[%clk 0:01:54.2]} 20... exd5 {[%clk 0:00:45.1]} 21.
exd5 {[%clk 0:01:51.8]} 21... Bc5 {[%clk 0:00:41.7]} 22. Nd2 {[%clk 0:01:41.1]}
22... Rb7 {[%clk 0:00:38.2]} 23. Ba6 {[%clk 0:01:30.3]} 23... Qa8 {[%clk
0:00:31.2]} 24. Bxb7 {[%clk 0:01:29.2]} 24... Qxb7 {[%clk 0:00:32.1]} 25. Nc4
{[%clk 0:01:24.5]} 25... Qxd5 {[%clk 0:00:27.4]} 26. Rad1 {[%clk 0:01:21.5]}
26... Qa8 {[%clk 0:00:22.4]} 27. Be5 {[%clk 0:01:19.1]} 27... Bh3 {[%clk
0:00:20.4]} 0-1

[Event "*** Titled Tuesday Blitz"]
[Site "Chess.com"]
[Date "2021.02.16"]
[Round "5"]
[White "HrvojeZagreb"]
[Black "guillembaches"]
[Result "1-0"]
[WhiteElo "2258"]
[BlackElo "2456"]
[TimeControl "180+1"]
[EndTime "10:57:10 PST"]
[Termination "HrvojeZagreb won on time"]

1. d4 {[%clk 0:03:00.9]} 1... Nf6 {[%clk 0:02:59.5]} 2. Bf4 {[%clk 0:03:00.4]}
2... b6 {[%clk 0:02:54.3]} 3. Nc3 {[%clk 0:02:59.6]} 3... Bb7 {[%clk 0:02:51.5]}
4. Qd3 {[%clk 0:02:59.6]} 4... d5 {[%clk 0:02:46.8]} 5. Qh3 {[%clk 0:02:58.3]}
5... e6 {[%clk 0:02:35]} 6. e3 {[%clk 0:02:55.9]} 6... Bd6 {[%clk 0:02:30.6]} 7.
Bg5 {[%clk 0:02:50.9]} 7... a6 {[%clk 0:02:17.5]} 8. Bd3 {[%clk 0:02:49.2]} 8...
h6 {[%clk 0:02:14.5]} 9. e4 {[%clk 0:02:39]} 9... dxe4 {[%clk 0:02:07.9]} 10.
Bxe4 {[%clk 0:02:37.2]} 10... Bxe4 {[%clk 0:01:51.1]} 11. Nxe4 {[%clk 0:02:35]}
11... Be7 {[%clk 0:01:48.3]} 12. Bxf6 {[%clk 0:02:32.5]} 12... Bxf6 {[%clk
0:01:44]} 13. O-O-O {[%clk 0:02:25.2]} 13... Nd7 {[%clk 0:01:37.4]} 14. d5
{[%clk 0:02:20.3]} 14... e5 {[%clk 0:01:33.4]} 15. d6 {[%clk 0:02:14.9]} 15...
c5 {[%clk 0:01:27.5]} 16. Nf3 {[%clk 0:02:06.4]} 16... g6 {[%clk 0:01:11.5]} 17.
Rhe1 {[%clk 0:01:47.5]} 17... Bg7 {[%clk 0:01:08.6]} 18. Nc3 {[%clk 0:01:39.6]}
18... O-O {[%clk 0:01:04.9]} 19. Nd5 {[%clk 0:01:36.3]} 19... f5 {[%clk
0:00:57.6]} 20. Nh4 {[%clk 0:01:26.2]} 20... Kh7 {[%clk 0:00:42.9]} 21. Nc7
{[%clk 0:01:22.7]} 21... Qf6 {[%clk 0:00:33.9]} 22. Nxa8 {[%clk 0:01:17.7]}
22... Rxa8 {[%clk 0:00:34.8]} 23. c3 {[%clk 0:01:09.1]} 23... b5 {[%clk
0:00:34.5]} 24. g4 {[%clk 0:00:59.4]} 24... Rf8 {[%clk 0:00:20.1]} 25. gxf5
{[%clk 0:00:57.3]} 25... gxf5 {[%clk 0:00:20.5]} 26. Rg1 {[%clk 0:00:54]} 26...
b4 {[%clk 0:00:20.5]} 27. Rg6 {[%clk 0:00:52.5]} 27... Qf7 {[%clk 0:00:20.6]}
28. Rdg1 {[%clk 0:00:51.5]} 28... Rg8 {[%clk 0:00:20.2]} 29. Nxf5 {[%clk
0:00:49.6]} 1-0

[Event "*** Titled Tuesday Blitz"]
[Site "Chess.com"]
[Date "2021.02.16"]
[Round "5"]
[White "Evachess2006"]
[Black "LuisFSiles"]
[Result "0-1"]
[WhiteElo "1608"]
[BlackElo "2309"]
[TimeControl "180+1"]
[EndTime "10:57:11 PST"]
[Termination "LuisFSiles won by resignation"]

1. e4 {[%clk 0:02:32.4]} 1... c5 {[%clk 0:02:58.3]} 2. c3 {[%clk 0:02:23.8]}
2... d5 {[%clk 0:02:56]} 3. exd5 {[%clk 0:02:21.3]} 3... Nf6 {[%clk 0:02:55.2]}
4. d4 {[%clk 0:02:22.2]} 4... cxd4 {[%clk 0:02:53.1]} 5. cxd4 {[%clk 0:02:12.9]}
5... Nxd5 {[%clk 0:02:50.5]} 6. Nf3 {[%clk 0:02:13.8]} 6... g6 {[%clk
0:02:49.5]} 7. Be2 {[%clk 0:02:02.2]} 7... Bg7 {[%clk 0:02:49.2]} 8. Nc3 {[%clk
0:01:58.3]} 8... O-O {[%clk 0:02:44.4]} 9. O-O {[%clk 0:01:51.2]} 9... Nc6
{[%clk 0:02:38.3]} 10. Bg5 {[%clk 0:01:44.7]} 10... h6 {[%clk 0:02:31.6]} 11.
Bh4 {[%clk 0:01:39.7]} 11... b6 {[%clk 0:02:03.2]} 12. Rc1 {[%clk 0:01:31.8]}
12... Bb7 {[%clk 0:02:02.4]} 13. Nxd5 {[%clk 0:01:26.7]} 13... Qxd5 {[%clk
0:02:01.6]} 14. Bc4 {[%clk 0:01:27.6]} 14... Qh5 {[%clk 0:01:48.8]} 15. Bg3
{[%clk 0:01:22.9]} 15... Rad8 {[%clk 0:01:42]} 16. d5 {[%clk 0:01:11.3]} 16...
Bxb2 {[%clk 0:01:23.4]} 17. Qc2 {[%clk 0:00:59.8]} 17... Na5 {[%clk 0:01:03.8]}
18. Qxb2 {[%clk 0:00:54.1]} 18... Nxc4 {[%clk 0:01:03.7]} 19. Rxc4 {[%clk
0:00:55]} 19... Ba6 {[%clk 0:01:04.1]} 20. Rfc1 {[%clk 0:00:45]} 20... Qxd5
{[%clk 0:01:02.1]} 21. Rd4 {[%clk 0:00:40.3]} 21... Qf5 {[%clk 0:00:47]} 22.
Rxd8 {[%clk 0:00:37.4]} 22... Rxd8 {[%clk 0:00:47.9]} 23. h3 {[%clk 0:00:34.3]}
23... Bb7 {[%clk 0:00:46.7]} 24. Qe5 {[%clk 0:00:28]} 24... Qd3 {[%clk
0:00:41.1]} 25. Rc8 {[%clk 0:00:10.6]} 25... Bxc8 {[%clk 0:00:36]} 0-1

[Event "*** Titled Tuesday Blitz"]
[Site "Chess.com"]
[Date "2021.02.16"]
[Round "5"]
[White "oneshot007"]
[Black "ferdipy"]
[Result "1-0"]
[WhiteElo "2508"]
[BlackElo "2341"]
[TimeControl "180+1"]
[EndTime "10:57:12 PST"]
[Termination "oneshot007 won by resignation"]

1. e4 {[%clk 0:03:00.9]} 1... e6 {[%clk 0:03:00]} 2. d4 {[%clk 0:03:00.7]} 2...
d5 {[%clk 0:03:00.3]} 3. Nc3 {[%clk 0:03:01.3]} 3... Bb4 {[%clk 0:02:58.5]} 4.
e5 {[%clk 0:03:01.7]} 4... c5 {[%clk 0:02:57.9]} 5. a3 {[%clk 0:03:02.2]} 5...
Bxc3+ {[%clk 0:02:56.3]} 6. bxc3 {[%clk 0:03:03.1]} 6... Ne7 {[%clk 0:02:54.6]}
7. h4 {[%clk 0:03:02.8]} 7... Qa5 {[%clk 0:02:52.9]} 8. Bd2 {[%clk 0:03:01.8]}
8... c4 {[%clk 0:02:52.6]} 9. h5 {[%clk 0:03:00.1]} 9... h6 {[%clk 0:02:51.7]}
10. Nf3 {[%clk 0:02:58.2]} 10... Nbc6 {[%clk 0:02:49.4]} 11. g3 {[%clk
0:02:58.2]} 11... Qa4 {[%clk 0:02:49.6]} 12. Bg2 {[%clk 0:02:51.6]} 12... Bd7
{[%clk 0:02:41.2]} 13. O-O {[%clk 0:02:51.3]} 13... O-O-O {[%clk 0:02:39.6]} 14.
Bh3 {[%clk 0:02:41.7]} 14... Kb8 {[%clk 0:02:37.8]} 15. Nh4 {[%clk 0:02:32.1]}
15... Ka8 {[%clk 0:02:35.1]} 16. Ra2 {[%clk 0:02:31.5]} 16... g5 {[%clk
0:02:29.4]} 17. Ng2 {[%clk 0:02:26.7]} 17... Qa5 {[%clk 0:02:11.9]} 18. Ne3
{[%clk 0:02:26.1]} 18... Rdf8 {[%clk 0:02:09.8]} 19. Ng4 {[%clk 0:02:25.9]}
19... Ng8 {[%clk 0:02:05.9]} 20. f4 {[%clk 0:02:25.7]} 20... f5 {[%clk
0:01:57.3]} 21. fxg5 {[%clk 0:02:21.8]} 21... hxg5 {[%clk 0:01:54.7]} 22. Nf6
{[%clk 0:02:15.5]} 22... Nxf6 {[%clk 0:01:50.7]} 23. exf6 {[%clk 0:02:15.8]}
23... g4 {[%clk 0:01:42.5]} 24. Bg2 {[%clk 0:02:10.9]} 24... Rxh5 {[%clk
0:01:39.3]} 25. Kf2 {[%clk 0:01:39.4]} 25... Rxf6 {[%clk 0:01:19.2]} 26. Rh1
{[%clk 0:01:36.7]} 26... Rxh1 {[%clk 0:01:19.5]} 27. Qxh1 {[%clk 0:01:37.4]}
27... Rf8 {[%clk 0:01:16.8]} 28. Qh7 {[%clk 0:01:33.6]} 28... Bc8 {[%clk
0:01:09.9]} 29. Qg7 {[%clk 0:01:29.8]} 29... Rd8 {[%clk 0:01:04.6]} 30. Ra1
{[%clk 0:01:27.7]} 30... e5 {[%clk 0:01:01.4]} 31. dxe5 {[%clk 0:01:25.3]} 31...
d4 {[%clk 0:01:00.4]} 32. Re1 {[%clk 0:01:20.8]} 32... dxc3 {[%clk 0:00:51.4]}
33. Bg5 {[%clk 0:01:18.7]} 33... Re8 {[%clk 0:00:49.6]} 34. Qf7 {[%clk
0:01:15.6]} 34... Qc5+ {[%clk 0:00:41.5]} 35. Be3 {[%clk 0:01:07.5]} 35... Qxe5
{[%clk 0:00:39.7]} 36. Bxc6 {[%clk 0:01:05.7]} 36... Re7 {[%clk 0:00:27.1]} 37.
Qf8 {[%clk 0:01:03.1]} 37... Qc7 {[%clk 0:00:18.6]} 38. Bd5 {[%clk 0:01:02.7]}
38... Kb8 {[%clk 0:00:16.8]} 39. Bf4 {[%clk 0:01:02.4]} 39... Qxf4+ {[%clk
0:00:14.8]} 40. gxf4 {[%clk 0:01:02.2]} 40... Rxe1 {[%clk 0:00:15.7]} 41. Kxe1
{[%clk 0:01:02.4]} 1-0

[Event "*** Titled Tuesday Blitz"]
[Site "Chess.com"]
[Date "2021.02.16"]
[Round "5"]
[White "Zubrrr"]
[Black "ram1zan"]
[Result "0-1"]
[WhiteElo "2629"]
[BlackElo "2869"]
[TimeControl "180+1"]
[EndTime "10:57:14 PST"]
[Termination "ram1zan won on time"]

1. d4 {[%clk 0:03:00.9]} 1... d5 {[%clk 0:02:59.6]} 2. c4 {[%clk 0:03:00.6]}
2... e6 {[%clk 0:02:59.2]} 3. Nf3 {[%clk 0:02:59.5]} 3... Nf6 {[%clk 0:02:59.2]}
4. g3 {[%clk 0:02:58.7]} 4... dxc4 {[%clk 0:02:59.4]} 5. Bg2 {[%clk 0:02:58.3]}
5... a6 {[%clk 0:02:59.9]} 6. O-O {[%clk 0:02:58.1]} 6... Nc6 {[%clk 0:02:59]}
7. Nc3 {[%clk 0:02:11.6]} 7... Rb8 {[%clk 0:02:52.5]} 8. e3 {[%clk 0:02:08]}
8... b5 {[%clk 0:02:48.7]} 9. a4 {[%clk 0:02:06.9]} 9... Be7 {[%clk 0:01:59.8]}
10. axb5 {[%clk 0:02:02.3]} 10... axb5 {[%clk 0:02:00]} 11. Qe2 {[%clk
0:01:58.8]} 11... O-O {[%clk 0:01:58.7]} 12. Rd1 {[%clk 0:01:58.5]} 12... Nb4
{[%clk 0:01:54.9]} 13. Ne5 {[%clk 0:01:54.4]} 13... Nfd5 {[%clk 0:01:48.5]} 14.
e4 {[%clk 0:01:41.7]} 14... Nf6 {[%clk 0:01:48.6]} 15. Be3 {[%clk 0:01:26.4]}
15... Nd7 {[%clk 0:01:42.1]} 16. Nf3 {[%clk 0:01:16.5]} 16... Bb7 {[%clk
0:01:34.6]} 17. Bf4 {[%clk 0:01:03.5]} 17... Nd3 {[%clk 0:01:28]} 18. Nxb5
{[%clk 0:00:55.5]} 18... Nxf4 {[%clk 0:01:28]} 19. gxf4 {[%clk 0:00:55.5]} 19...
Bxe4 {[%clk 0:01:28.9]} 20. Qxc4 {[%clk 0:00:42.8]} 20... Bd5 {[%clk 0:01:26.9]}
21. Qe2 {[%clk 0:00:40]} 21... Nf6 {[%clk 0:01:16.2]} 22. Nc3 {[%clk 0:00:38.8]}
22... Bb7 {[%clk 0:01:10.4]} 23. Ne5 {[%clk 0:00:27.7]} 23... Bd6 {[%clk
0:01:09.9]} 24. Rd3 {[%clk 0:00:17.9]} 24... g6 {[%clk 0:01:06.4]} 25. Rh3
{[%clk 0:00:11.7]} 25... Qc8 {[%clk 0:00:57.9]} 26. Rd1 {[%clk 0:00:10.9]} 26...
Bxg2 {[%clk 0:00:57.9]} 27. Kxg2 {[%clk 0:00:11.7]} 27... Qb7+ {[%clk
0:00:58.5]} 28. Kg1 {[%clk 0:00:11.2]} 28... Qxb2 {[%clk 0:00:58.3]} 29. Qf3
{[%clk 0:00:09.5]} 29... Qc2 {[%clk 0:00:55.9]} 30. Qg3 {[%clk 0:00:02.9]} 30...
Rb3 {[%clk 0:00:53.8]} 31. Qh4 {[%clk 0:00:02.9]} 31... Nh5 {[%clk 0:00:52.7]}
0-1

[Event "*** Titled Tuesday Blitz"]
[Site "Chess.com"]
[Date "2021.02.16"]
[Round "5"]
[White "Khnykin_Nikolay"]
[Black "barbara25"]
[Result "0-1"]
[WhiteElo "2070"]
[BlackElo "2248"]
[TimeControl "180+1"]
[EndTime "10:57:14 PST"]
[Termination "barbara25 won on time"]

1. d4 {[%clk 0:03:00.9]} 1... Nf6 {[%clk 0:02:59.2]} 2. Nc3 {[%clk 0:03:00.5]}
2... e6 {[%clk 0:02:59.1]} 3. Bf4 {[%clk 0:02:58]} 3... d5 {[%clk 0:03:00]} 4.
e3 {[%clk 0:02:56]} 4... Bd6 {[%clk 0:03:00.3]} 5. Bxd6 {[%clk 0:02:54.7]} 5...
cxd6 {[%clk 0:02:56.7]} 6. Nf3 {[%clk 0:02:48.3]} 6... O-O {[%clk 0:02:56.4]} 7.
Bd3 {[%clk 0:02:46.2]} 7... a6 {[%clk 0:02:55.4]} 8. Qd2 {[%clk 0:02:41.3]} 8...
Nbd7 {[%clk 0:02:54.8]} 9. O-O-O {[%clk 0:02:32.2]} 9... b5 {[%clk 0:02:50.9]}
10. h4 {[%clk 0:02:20.3]} 10... Bb7 {[%clk 0:02:48.7]} 11. Rdg1 {[%clk 0:02:12]}
11... Rc8 {[%clk 0:02:48]} 12. g4 {[%clk 0:02:05.2]} 12... Ne4 {[%clk
0:02:46.6]} 13. Bxe4 {[%clk 0:02:00.4]} 13... dxe4 {[%clk 0:02:46.6]} 14. Ne1
{[%clk 0:01:57.2]} 14... d5 {[%clk 0:02:44.6]} 15. g5 {[%clk 0:01:48.1]} 15...
Nb6 {[%clk 0:02:44]} 16. h5 {[%clk 0:01:43.7]} 16... Nc4 {[%clk 0:02:44.2]} 17.
Qe2 {[%clk 0:01:38.5]} 17... b4 {[%clk 0:02:44.2]} 18. Nb1 {[%clk 0:01:35.1]}
18... Bc6 {[%clk 0:02:44.4]} 19. g6 {[%clk 0:01:31]} 19... Bb5 {[%clk
0:02:42.9]} 20. gxh7+ {[%clk 0:01:27.2]} 20... Kxh7 {[%clk 0:02:42.6]} 21. Qg4
{[%clk 0:01:22.8]} 21... Rg8 {[%clk 0:02:42.4]} 22. Qg6+ {[%clk 0:01:08]} 22...
Kh8 {[%clk 0:02:40.5]} 23. Qxf7 {[%clk 0:00:53.3]} 23... Rc7 {[%clk 0:02:35.5]}
24. h6 {[%clk 0:00:45.7]} 24... g5 {[%clk 0:02:25.1]} 25. Qxe6 {[%clk
0:00:38.4]} 25... Rc6 {[%clk 0:02:21.9]} 26. Qg4 {[%clk 0:00:35.9]} 26... Rf6
{[%clk 0:02:13.8]} 27. Rg2 {[%clk 0:00:28.4]} 27... Nd6 {[%clk 0:02:02.8]} 28.
Rh5 {[%clk 0:00:26.1]} 28... Nf7 {[%clk 0:01:56.6]} 29. h7 {[%clk 0:00:20]}
29... Rg7 {[%clk 0:01:54.7]} 30. Rg3 {[%clk 0:00:18.7]} 30... a5 {[%clk
0:01:46.6]} 31. Rg2 {[%clk 0:00:18.2]} 31... a4 {[%clk 0:01:45.2]} 32. Qh3
{[%clk 0:00:16.5]} 32... b3 {[%clk 0:01:45.1]} 33. axb3 {[%clk 0:00:16.4]} 33...
axb3 {[%clk 0:01:45.5]} 34. c3 {[%clk 0:00:16.1]} 34... Be2 {[%clk 0:01:43.4]}
35. Kd2 {[%clk 0:00:14.7]} 35... Bxh5 {[%clk 0:01:43.3]} 36. Qxh5 {[%clk
0:00:14.7]} 36... Rh6 {[%clk 0:01:43.5]} 37. Qg4 {[%clk 0:00:14.2]} 37... Rhxh7
{[%clk 0:01:43.1]} 38. Qg3 {[%clk 0:00:13.9]} 38... g4 {[%clk 0:01:42.2]} 39.
Qf4 {[%clk 0:00:12.9]} 39... Qg5 {[%clk 0:01:40.1]} 40. Qb8+ {[%clk 0:00:11.4]}
40... Rg8 {[%clk 0:01:39.6]} 41. Qg3 {[%clk 0:00:08.8]} 41... Rh3 {[%clk
0:01:38.6]} 42. Qc7 {[%clk 0:00:06.6]} 42... Rh7 {[%clk 0:01:36.9]} 43. Qg3
{[%clk 0:00:05.5]} 43... Nh6 {[%clk 0:01:36.6]} 44. Rh2 {[%clk 0:00:03.4]} 44...
Re8 {[%clk 0:01:34.1]} 45. Qd6 {[%clk 0:00:01]} 45... Nf5 {[%clk 0:01:31.7]} 0-1